bitfinex/quotes_ETHUSD_20250106
["timestamp","ask_amount","ask_price","bid_price","bid_amount"]
[1736147139386,5.3390914,3664.9,3663.8,0.12002763]
[1736147139541,3.786,3664.8,3664.0,0.11992743]
[1736147139741,5.3393214,3664.6,3663.9,0.11997753]
[1736147139942,5.3393214,3664.6,3663.7,0.8101]
[1736147140141,5.3393214,3664.6,3664.0,0.11992743]
[1736147140400,2.7289,3664.5,3663.7,0.8101]
[1736147140600,2.7289,3664.5,3664.1,0.11987733]
[1736147140893,2.7289,3664.5,3663.7,0.8101]
[1736147141458,2.7289,3664.5,3663.8,0.12002763]
[1736147142444,2.6105014,3664.6,3663.8,0.12002763]
[1736147142644,2.72898,3664.4,3663.8,0.12002763]
[1736147142947,2.6105014,3664.6,3663.8,0.12002763]
[1736147142948,0.7629,3664.2,3663.8,0.12002763]
[1736147143151,3.49202,3664.2,3663.4,0.7978]
[1736147143458,2.72919,3664.1,3663.9,0.12064016]
[1736147143703,2.72933,3663.9,3663.4,0.7978]
[1736147143905,0.7629,3664.2,3663.4,0.7978]
[1736147143906,2.72918,3664.1,3663.4,0.7978]
[1736147144116,0.7629,3664.2,3663.4,0.7978]
[1736147144287,2.72934,3663.9,3663.5,0.12084852]
[1736147144982,3.0,3664.0,3663.4,0.7978]
[1736147145192,3.0,3664.0,3663.6,0.12088972]
[1736147145603,3.0,3664.0,3663.4,0.7978]
[1736147146069,3.0,3664.0,3663.0,0.55]
[1736147146274,2.72918,3664.1,3663.0,3.27999]
[1736147146475,1.89095888,3664.2,3663.2,0.55]
[1736147146476,1.12805888,3664.2,3663.2,0.55]
[1736147147079,1.12805888,3664.2,3663.4,0.55]
[1736147147480,1.12805888,3664.2,3663.5,0.12099938]
[1736147147818,3.85715888,3664.2,3663.2,0.55]
[1736147148014,1.12805888,3664.2,3663.6,0.12094927]
[1736147148216,2.72921,3664.1,3663.0,0.55]
[1736147149023,2.72455309,3664.1,3663.2,0.55]
[1736147149216,2.72455309,3664.1,3663.2,1.3064]
[1736147149422,3.46991414,3664.2,3663.2,1.3064]
[1736147149623,3.46991414,3664.0,3663.2,1.3064]
[1736147149823,3.46991414,3664.0,3663.4,0.55]
[1736147150620,3.46991414,3664.0,3663.3,0.55]
[1736147150819,3.46991414,3664.1,3663.3,0.55]
[1736147151123,3.46991414,3664.1,3663.4,0.12180743]
[1736147151336,3.46991414,3664.1,3663.5,0.12175731]
[1736147151533,3.46991414,3664.1,3663.6,0.55]
[1736147151695,3.46991414,3664.1,3663.7,0.55]
[1736147152027,3.46991414,3664.1,3663.8,0.8172]
[1736147152238,1.12805888,3664.1,3663.9,0.55]
[1736147152530,1.12805888,3664.1,3664.0,1.3672]
[1736147152684,1.12805888,3664.1,3664.0,1.48859563]
[1736147153613,1.12805888,3664.6,3664.1,0.55]
[1736147153785,1.12805888,3664.6,3664.3,0.55]
[1736147154197,1.12805888,3664.6,3664.4,0.12119527]
[1736147154585,1.12805888,3664.7,3664.4,0.12119527]
[1736147155928,3.46991414,3664.8,3664.4,0.12119527]
[1736147159229,1.12805888,3664.8,3664.4,0.12119527]
[1736147160407,1.12805888,3664.9,3664.4,0.12119527]
[1736147160936,1.12805888,3664.9,3664.3,0.55]
[1736147162002,1.12805888,3664.8,3664.3,0.55]
[1736147163737,1.12805888,3664.7,3664.3,0.55]
[1736147164097,1.12805888,3664.7,3664.4,0.12096503]
[1736147167452,1.12805888,3664.7,3663.6,0.8111]
[1736147167651,3.0,3664.6,3663.6,0.8111]
[1736147167813,2.72901,3664.4,3663.7,0.12115692]
[1736147168012,2.72905,3664.3,3663.7,0.12115692]
[1736147168216,2.72911,3664.2,3663.7,0.12115692]
[1736147169169,1.12805888,3664.1,3663.7,0.12115692]
[1736147169854,1.12805888,3664.1,3663.8,0.55]
[1736147170214,1.12805888,3664.1,3663.7,0.55]
[1736147170461,1.12805888,3664.0,3663.6,0.8111]
[1736147170630,1.12805888,3664.0,3663.8,0.12125369]
[1736147170830,1.12805888,3664.0,3663.7,0.12130379]
[1736147171026,1.12805888,3664.0,3663.6,0.8111]
[1736147171328,1.12805888,3664.0,3663.7,0.12130379]
[1736147173456,1.12805888,3664.1,3663.7,0.12130379]
[1736147173756,4.90345888,3664.1,3663.7,0.12130379]
[1736147173960,2.7294,3663.8,3663.7,0.12130379]
[1736147174159,2.72952,3663.7,3663.0,0.7557]
[1736147174331,2.72952,3663.7,3663.1,35.12195775]
[1736147174530,3.50503,3663.5,3663.1,0.12195775]
[1736147174736,2.72978,3663.3,3662.6,0.7557]
[1736147175048,2.72978,3663.3,3662.7,35.12215825]
[1736147175356,0.7754,3663.5,3662.7,0.12215825]
[1736147175562,2.72994,3663.1,3662.3,0.7557]
[1736147175765,2.73001,3663.0,3662.4,35.1226343]
[1736147176621,2.73001,3663.0,3662.4,0.1226343]
[1736147176962,5.07171526,3663.2,3662.3,0.7557]
[1736147177159,5.07171526,3663.2,3662.4,0.12271375]
[1736147177500,2.34185526,3663.2,3662.4,0.12271375]
[1736147177663,2.72992,3663.1,3662.4,0.12271375]
[1736147179066,1.13312962,3663.2,3662.4,0.12271375]
[1736147179226,2.72978,3663.3,3662.4,0.12271375]
[1736147179227,3.86290962,3663.3,3662.4,0.12271375]
[1736147180467,3.86290962,3663.3,3662.3,0.7557]
[1736147180640,3.86290962,3663.3,3662.4,35.0]
[1736147180840,3.86290962,3663.3,3662.4,35.12271375]
[1736147181046,2.3397904,3663.2,3662.4,35.12271375]
[1736147181772,5.0696504,3663.2,3662.4,35.12271375]
[1736147182085,2.7303,3662.6,3662.4,0.12271375]
[1736147182293,0.119,3662.5,3662.4,0.12271375]
[1736147182450,0.119,3662.5,3661.8,0.005]
[1736147182646,2.84939,3662.5,3661.8,0.005]
[1736147182951,2.84939,3662.5,3661.9,0.12301613]
[1736147183378,0.119,3662.5,3661.8,0.005]
[1736147183685,0.119,3662.5,3662.1,0.7727]
[1736147183893,2.3397904,3662.4,3662.1,0.7727]
[1736147184063,2.3397904,3662.4,3662.2,0.12304846]
[1736147184265,2.3397904,3662.4,3662.3,35.0]
[1736147184663,2.3397904,3662.4,3662.3,35.12299831]
[1736147184863,2.3397904,3662.4,3662.3,0.12299831]
[1736147185275,1.25212962,3662.5,3662.1,0.7727]
[1736147185276,0.119,3662.5,3662.1,35.7727]
[1736147185488,0.119,3662.5,3662.3,0.12299831]
[1736147185685,0.119,3662.5,3662.2,0.12304846]
[1736147185976,0.119,3662.5,3662.3,0.12299831]
[1736147186160,0.119,3662.5,3661.8,0.8169]
[1736147186365,0.119,3662.5,3661.9,0.12319891]
[1736147190815,2.8494,3662.5,3661.9,0.12319891]
[1736147190997,0.7877,3662.4,3661.9,0.12319891]
[1736147191201,0.7877,3662.4,3661.8,0.8169]
[1736147192379,0.7877,3662.4,3661.8,0.005]
[1736147193773,0.7877,3662.4,3661.9,0.12394571]
[1736147194409,2.73066,3662.2,3661.9,0.12394571]
[1736147194614,2.73072,3662.1,3661.9,0.12394571]
[1736147194820,2.73072,3662.1,3661.8,0.005]
[1736147195413,2.73052,3662.3,3661.8,0.005]
[1736147195723,3.7877,3662.4,3661.8,0.005]
[1736147196214,0.7877,3662.4,3661.2,0.7668]
[1736147196421,2.73097,3661.8,3660.7,6.1711014]
[1736147196618,0.7874,3661.7,3661.3,0.12130514]
[1736147196915,3.51844,3661.7,3660.7,0.8289]
[1736147197118,0.7874,3661.7,3660.7,0.8289]
[1736147197281,2.73113,3661.5,3660.8,0.12051593]
[1736147198814,0.7874,3661.7,3660.8,0.12051593]
[1736147198996,2.73123,3661.4,3660.8,0.12051593]
[1736147199509,3.53593,3661.1,3660.8,0.12051593]
[1736147199716,2.85053,3661.0,3660.8,0.12051593]
[1736147200052,0.119,3661.0,3660.5,0.7863]
[1736147200518,0.119,3661.0,3660.6,0.1206163]
[1736147200816,0.7955,3661.8,3660.8,0.8316]
[1736147201129,1.13312962,3662.0,3661.1,0.8316]
[1736147201276,1.13312962,3662.0,3661.2,0.55]
[1736147201472,1.13312962,3662.0,3661.3,35.0]
[1736147201700,2.73097,3661.7,3661.2,0.12031521]
[1736147201905,3.52737,3661.7,3661.4,0.12021487]
[1736147202112,0.7964,3661.7,3661.3,0.12063074]
[1736147202324,2.73118,3661.5,3660.5,0.8024]
[1736147202548,2.73118,3661.5,3660.5,3.53426]
[1736147202693,2.73118,3661.5,3660.6,35.670982]
[1736147203033,0.7964,3661.7,3660.6,35.120982]
[1736147203187,3.0,3661.4,3660.6,35.120982]
[1736147203391,5.7312,3661.4,3660.6,35.120982]
[1736147204125,3.0,3661.5,3660.6,0.670982]
[1736147204323,0.7964,3661.7,3660.6,3.402762]
[1736147204524,2.73091,3661.8,3660.7,38.28165]
[1736147204670,2.73091,3661.8,3660.8,0.7778]
[1736147205008,0.119,3661.7,3660.8,6.34809019]
[1736147205208,0.119,3661.7,3660.8,0.89890427]
[1736147205921,0.119,3661.7,3660.8,3.63053427]
[1736147206075,0.8273,3662.0,3660.9,3.28154]
[1736147206275,0.119,3661.8,3660.9,3.28154]
[1736147206494,0.119,3661.8,3661.1,0.55]
[1736147206820,2.7309,3661.8,3661.2,0.12086379]
[1736147207111,2.8499,3661.8,3661.2,0.12086379]
[1736147207316,0.119,3661.8,3660.9,35.55]
[1736147207520,0.119,3661.9,3661.4,0.8217]
[1736147208020,0.119,3661.9,3661.5,0.12071328]
[1736147208527,0.119,3661.9,3661.1,0.8217]
[1736147208697,0.119,3661.9,3661.6,0.12059553]
[1736147208899,2.7309,3661.8,3661.1,0.8217]
[1736147209224,3.4896,3661.8,3660.8,0.55]
[1736147209429,2.73105,3661.6,3661.2,0.12078825]
[1736147209628,2.73105,3661.6,3660.8,0.55]
[1736147209830,2.73105,3661.6,3661.3,0.12073808]
[1736147209989,2.73105,3661.6,3660.8,0.55]
[1736147210187,2.73105,3661.6,3660.9,0.12093878]
[1736147210950,3.4896,3661.8,3660.9,0.12093878]
[1736147211743,0.7587,3661.8,3660.9,0.12093878]
[1736147211904,0.7587,3661.8,3661.1,0.55]
[1736147212104,1.13312962,3662.1,3661.2,3.28133]
[1736147212305,1.13312962,3662.1,3661.2,3.40211825]
[1736147212517,1.13312962,3662.1,3661.4,0.55]
[1736147212895,1.13312962,3662.1,3661.5,0.12063774]
[1736147213543,6.6022,3662.2,3661.5,0.12063774]
[1736147213705,1.25312962,3662.3,3661.7,0.55]
[1736147214152,4.25312962,3662.3,3661.8,0.12031633]
[1736147214495,4.25312962,3662.3,3661.7,0.55]
[1736147214697,0.93497881,3662.2,3661.9,0.12026617]
[1736147214927,0.93497881,3662.2,3661.8,0.12031633]
[1736147215158,0.93497881,3662.2,3661.7,0.55]
[1736147215781,2.85052,3662.3,3661.7,0.55]
[1736147216275,0.8123,3662.2,3661.4,0.55]
[1736147216475,0.8123,3662.2,3661.6,0.55]
[1736147216627,2.85052,3662.3,3661.6,0.55]
[1736147216827,0.12,3662.3,3661.7,0.12036648]
[1736147217373,1.25312962,3662.3,3661.7,0.12036648]
[1736147217602,1.25312962,3662.3,3661.6,0.55]
[1736147217760,3.98365962,3662.3,3661.6,0.55]
[1736147218075,1.25312962,3662.3,3661.7,0.12036648]
[1736147218239,3.47384182,3662.2,3661.7,0.12036648]
[1736147218968,3.47384182,3662.2,3661.6,0.55]
[1736147219340,3.47384182,3662.2,3661.7,0.1202035]
[1736147219535,0.93628488,3662.2,3661.7,0.1202035]
[1736147219740,2.73067,3662.1,3661.6,0.55]
[1736147219940,2.73067,3662.1,3661.8,0.12015334]
[1736147220163,2.73067,3662.1,3661.7,0.1202035]
[1736147220327,2.73067,3662.1,3661.6,0.55]
[1736147220533,2.73067,3662.1,3661.8,0.12015334]
[1736147220720,2.73067,3662.1,3661.7,0.1202035]
[1736147220940,6.20616467,3662.0,3661.5,0.8039]
[1736147221235,6.20616467,3662.0,3661.6,0.12027353]
[1736147222224,2.34227505,3661.9,3661.6,0.15282793]
[1736147223231,2.34227505,3661.9,3661.6,0.0325544]
[1736147224467,0.38958088,3661.8,3661.6,0.0325544]
[1736147224675,3.47540467,3661.9,3661.6,0.0325544]
[1736147225950,1.13312962,3661.8,3661.6,0.0325544]
[1736147226972,1.13312962,3661.8,3661.7,0.12023531]
[1736147227335,1.13312962,3661.8,3661.7,0.15278971]
[1736147228236,2.6283732,3661.9,3661.8,0.55]
[1736147228469,2.6283732,3661.9,3661.8,0.5825544]
[1736147229678,1.13569767,3661.9,3661.8,0.70273955]
[1736147230886,2.54168784,3661.9,3661.8,0.70273955]
[1736147231809,2.54168784,3661.9,3661.8,4.60750351]
[1736147232413,1.13569767,3661.9,3661.8,4.60750351]
[1736147233416,1.13569767,3661.9,3661.8,1.45283955]
[1736147233574,1.13241077,3661.9,3661.8,1.45283955]
[1736147233771,1.13241077,3662.2,3661.8,36.45283955]
[1736147233975,1.94731077,3662.2,3661.8,0.70273955]
[1736147234734,1.13241077,3662.2,3661.8,0.70273955]
[1736147234889,1.69208832,3661.9,3661.8,0.70273955]
[1736147235586,1.69208832,3661.9,3661.8,1.50063955]
[1736147235977,4.60118753,3662.1,3661.8,1.50063955]
[1736147235978,0.93628488,3662.0,3661.8,1.50063955]
[1736147236572,0.93628488,3662.0,3661.8,1.3804544]
[1736147236815,0.93628488,3662.0,3661.9,0.66969372]
[1736147237118,0.93628488,3662.1,3661.9,0.66969372]
[1736147237272,0.93628488,3662.1,3661.9,0.11969372]
[1736147237471,0.93628488,3662.1,3661.9,0.15224812]
[1736147237726,0.93628488,3662.1,3661.9,0.0325544]
[1736147238349,0.93628488,3662.1,3662.0,0.11947663]
[1736147238670,3.66490265,3662.1,3662.0,0.5825544]
[1736147239031,3.66490265,3662.1,3662.0,0.70203103]
[1736147240072,2.64341933,3662.1,3662.0,0.70203103]
[1736147240873,2.64341933,3662.1,3662.0,0.15203103]
[1736147241174,3.11284248,3662.1,3662.0,0.15203103]
[1736147242077,3.92654248,3662.1,3662.0,0.15203103]
[1736147242540,3.92654248,3662.1,3662.0,0.0325544]
[1736147242736,3.16184663,3662.1,3662.0,0.0325544]
[1736147243243,3.16184663,3662.1,3661.6,0.7537]
[1736147243244,2.34814663,3662.1,3661.6,0.7537]
[1736147243458,2.34814663,3662.1,3661.7,0.1196112]
[1736147245047,1.13578348,3661.8,3661.7,0.1196112]
[1736147245887,1.13578348,3661.8,3661.7,0.11904281]
[1736147246082,0.7596,3661.9,3661.7,0.11904281]
[1736147246287,0.7596,3661.9,3661.0,35.0]
[1736147246288,3.11246012,3661.8,3661.0,35.8029]
[1736147247593,3.11246012,3661.8,3661.1,0.55]
[1736147247594,1.13614854,3661.5,3661.1,0.55]
[1736147248686,3.48429517,3661.4,3661.1,0.55]
[1736147249589,1.13614854,3661.3,3661.1,0.55]
[1736147249971,1.13614854,3661.3,3661.2,35.55]
[1736147250695,2.07551028,3661.3,3661.2,35.55]
[1736147252353,2.07551028,3661.3,3661.2,41.75861592]
[1736147253753,2.25611776,3661.6,3661.2,41.75861592]
[1736147253754,1.13614854,3661.6,3661.3,3.28123]
[1736147254456,1.13614854,3661.6,3661.2,0.7597]
[1736147254457,1.13614854,3661.6,3661.5,0.55]
[1736147254852,1.13614854,3661.6,3661.5,1.3149]
[1736147255103,2.07551028,3661.6,3661.5,1.3149]
[1736147255395,2.07551028,3661.6,3661.5,6.76359592]
[1736147255693,2.07551028,3661.6,3661.5,7.31368244]
[1736147256789,2.07551028,3661.6,3661.5,7.43303622]
[1736147257176,2.07551028,3661.8,3661.7,3.28097]
[1736147257401,2.07551028,3661.8,3661.7,6.76344592]
[1736147257709,2.07551028,3661.8,3661.7,4.16512346]
[1736147258587,0.93936174,3661.9,3661.8,0.55]
[1736147259100,0.93936174,3661.9,3661.8,6.7733947]
[1736147259603,2.8e-07,3662.0,3661.9,7.04362]
[1736147259905,2.8e-07,3662.0,3661.9,42.16256648]
[1736147260062,1.70367523,3662.2,3662.0,0.55]
[1736147260394,1.70367523,3662.2,3662.1,6.62997732]
[1736147260597,1.70367523,3662.2,3662.1,4.03124758]
[1736147260806,1.70367523,3662.2,3662.1,39.03124758]
[1736147261364,1.70367523,3662.2,3662.1,41.76191758]
[1736147262205,1.70367523,3663.3,3662.9,0.7922]
[1736147262529,1.70367523,3663.3,3663.0,0.66728256]
[1736147263301,1.88076002,3663.6,3663.0,0.66728256]
[1736147263302,3.11424525,3663.6,3663.2,0.55]
[1736147263677,3.11424525,3663.6,3663.4,0.55]
[1736147263873,3.11424525,3663.6,3663.5,1.343]
[1736147264085,7.11424525,3663.6,3663.5,1.46003198]
[1736147264289,3.11424525,3663.6,3663.5,1.46003198]
[1736147264798,1.70367523,3664.0,3663.5,1.46003198]
[1736147265110,1.70367523,3664.0,3663.5,0.66703198]
[1736147265804,3.11424525,3664.0,3663.5,0.55]
[1736147266382,3.11424525,3664.0,3663.6,0.1168945]
[1736147266796,3.11424525,3664.0,3663.5,0.55]
[1736147267011,1.41057002,3663.9,3663.5,0.55]
[1736147267177,1.41057002,3663.9,3663.6,0.1168945]
[1736147267588,0.7934,3663.8,3663.6,0.1168945]
[1736147268671,1.41057002,3663.9,3663.6,0.1168945]
[1736147268878,0.7669,3664.1,3663.6,0.1168945]
[1736147270220,0.8276,3664.3,3663.6,0.1168945]
[1736147270424,1.96092847,3664.3,3663.6,0.45655995]
[1736147271406,1.96092847,3664.3,3663.8,0.55]
[1736147271609,0.8276,3664.3,3663.8,0.55]
[1736147271772,0.8276,3664.3,3663.9,0.11674419]
[1736147271976,4.0,3664.0,3663.9,0.66674419]
[1736147272214,4.0,3664.0,3663.9,0.55]
[1736147272584,2.00642847,3664.5,3663.9,0.55]
[1736147272986,0.8731,3664.5,3663.9,0.55]
[1736147274514,2.72897,3664.4,3663.9,0.55]
[1736147274820,2.72925,3664.0,3663.4,0.7584]
[1736147274987,3.51963,3663.9,3663.1,0.7584]
[1736147275410,3.51963,3663.9,3663.2,0.55]
[1736147276233,2.7294,3663.8,3663.2,0.55]
[1736147276534,2.72949,3663.7,3663.1,0.7584]
[1736147276710,2.7294,3663.8,3662.8,35.7959]
[1736147276907,2.72955,3663.6,3662.8,35.7959]
[1736147277211,3.0,3664.3,3662.9,0.55]
[1736147277212,0.8181,3663.5,3662.9,0.55]
[1736147277535,0.8181,3663.5,3662.9,3.26757592]
[1736147280018,0.8181,3663.5,3662.9,0.55]
[1736147280327,0.8181,3663.5,3663.1,0.55]
[1736147281552,0.8181,3663.5,3662.9,0.55]
[1736147282722,0.8181,3663.5,3662.5,0.7557]
[1736147282953,0.7961,3662.8,3662.1,0.7557]
[1736147283260,0.7961,3662.8,3662.1,35.0]
[1736147283450,0.7961,3662.8,3661.8,0.8321]
[1736147283649,0.8031,3662.4,3661.5,0.8321]
[1736147283895,0.8031,3663.0,3661.9,2.73075]
[1736147284042,0.8031,3663.0,3662.0,3.56283]
[1736147284381,2.73009,3662.9,3662.0,0.8321]
[1736147284578,2.73022,3662.7,3662.0,0.8321]
[1736147284783,3.5334,3662.6,3661.6,0.8321]
[1736147286073,5.01372847,3663.2,3661.9,0.55]
[1736147286239,0.7614,3663.0,3661.9,3.28081]
[1736147286446,1.89472847,3663.0,3661.9,3.28081]
[1736147286646,1.89472847,3663.0,3662.1,0.55]
[1736147286976,2.73008,3662.9,3662.2,0.11361224]
[1736147287184,1.89472847,3663.0,3662.2,0.11361224]
[1736147287391,1.89472847,3663.0,3661.9,2.7308]
[1736147287585,0.7614,3663.0,3662.3,0.1135621]
[1736147287744,3.7614,3663.0,3661.9,2.7308]
[1736147287964,3.4914,3663.0,3662.4,0.11351196]
[1736147288201,3.4914,3663.0,3661.9,2.7308]
[1736147288397,3.4914,3663.0,3662.5,0.11346182]
[1736147288708,0.119,3662.9,3662.6,0.11341168]
[1736147288869,4.0,3662.7,3662.6,0.11341168]
[1736147289068,4.0,3662.7,3661.9,2.7308]
[1736147289401,4.0,3662.7,3662.0,0.11432017]
[1736147290086,0.7946,3662.6,3662.0,0.11432017]
[1736147290468,3.5249,3662.6,3661.8,0.7736]
[1736147290663,3.5249,3662.6,3661.9,0.11437033]
[1736147291566,4.0,3662.5,3661.9,0.11437033]
[1736147291928,4.0,3662.5,3661.8,0.7736]
[1736147292280,4.0,3662.5,3661.9,0.11437033]
[1736147292466,4.0,3662.5,3661.8,0.7736]
[1736147294202,0.7979,3662.2,3661.2,0.7792]
[1736147294367,0.7979,3662.2,3661.9,0.11437033]
[1736147294563,0.7979,3662.2,3661.3,0.55]
[1736147294992,0.7979,3662.2,3661.4,0.11506209]
[1736147295392,4.0,3662.1,3661.4,0.11506209]
[1736147295896,4.0,3662.1,3661.4,0.5326143]
[1736147296109,4.0,3662.1,3661.4,3.2637943]
[1736147296261,4.0,3662.1,3661.5,3.5522]
[1736147296466,4.0,3662.1,3661.6,3.39594176]
[1736147296704,4.0,3662.1,3661.6,0.66496176]
[1736147297006,1.13122577,3662.6,3662.0,1.3711]
[1736147297203,1.13122577,3662.7,3662.1,0.13711]
[1736147297404,1.13122577,3662.7,3662.3,2.73048]
[1736147297566,1.13122577,3662.7,3662.2,0.55]
[1736147297567,1.13122577,3662.7,3662.4,3.49392]
[1736147297764,1.13122577,3662.7,3662.4,3.60846863]
[1736147298582,0.805,3663.3,3662.4,3.60846863]
[1736147298977,0.805,3663.3,3662.4,0.7635]
[1736147299384,0.805,3663.3,3662.6,0.55]
[1736147299699,0.805,3663.3,3662.7,0.11439822]
[1736147306154,3.5348,3663.3,3662.4,0.7635]
[1736147306318,0.805,3663.3,3662.8,0.11418126]
[1736147306521,0.805,3663.3,3662.4,3.49394]
[1736147306733,0.805,3663.3,3662.9,0.11413113]
[1736147306938,0.805,3663.3,3662.5,0.349394]
[1736147307458,0.93754605,3663.2,3662.6,0.11428152]
[1736147308141,0.93754605,3663.2,3662.7,0.7895]
[1736147308344,0.93754605,3663.2,3662.7,0.90373139]
[1736147309201,0.93754605,3663.2,3662.8,0.45334154]
[1736147309623,2.06877182,3663.5,3662.9,0.1137628]
[1736147310357,2.06877182,3663.5,3662.8,0.55]
[1736147310652,2.06877182,3663.5,3663.0,0.11371267]
[1736147310948,3.47488501,3663.5,3663.1,0.11366255]
[1736147311162,3.47488501,3663.5,3662.8,0.55]
[1736147311311,3.47488501,3663.5,3663.2,0.11361243]
[1736147311508,3.47488501,3663.5,3662.8,0.55]
[1736147311763,3.47488501,3663.5,3663.3,0.11356231]
[1736147311903,3.47488501,3663.5,3662.8,0.55]
[1736147312104,3.47488501,3663.5,3662.9,0.8937628]
[1736147313798,3.47488501,3663.5,3662.9,1.25615208]
[1736147314812,2.34365924,3663.5,3663.1,2.72991]
[1736147314955,2.34365924,3663.5,3662.9,1.25615208]
[1736147314956,2.34365924,3663.5,3663.2,2.72984]
[1736147315158,2.34365924,3663.5,3663.2,2.84299956]
[1736147315682,2.34365924,3663.5,3663.2,0.11315956]
[1736147316008,1.40611319,3663.5,3663.3,0.7905]
[1736147316225,1.94132577,3663.9,3663.3,0.90360547]
[1736147316651,4.67072577,3663.9,3663.3,0.90360547]
[1736147316862,2.72948,3663.7,3662.6,3.52078]
[1736147317257,2.72957,3663.6,3662.7,0.11328707]
[1736147318400,0.7823,3663.7,3662.7,0.11328707]
[1736147318589,3.5118,3663.7,3662.7,0.11328707]
[1736147318916,3.4758412,3663.5,3662.7,0.11328707]
[1736147320214,1.13122577,3663.5,3662.7,0.11328707]
[1736147320554,1.13122577,3663.4,3662.7,0.11328707]
[1736147321426,1.13122577,3663.4,3662.9,2.73004]
[1736147321723,1.13122577,3663.4,3663.0,0.7662]
[1736147322026,1.13122577,3663.4,3663.0,0.87936448]
[1736147325287,1.13122577,3663.5,3663.0,0.87936448]
[1736147326271,1.13122577,3663.5,3663.0,0.11316448]
[1736147326621,1.94842577,3663.4,3662.8,0.829]
[1736147327120,1.13122577,3663.4,3662.9,0.11313913]
[1736147327614,0.93754605,3663.3,3662.9,0.11313913]
[1736147329149,1.13122577,3663.4,3662.9,0.11313913]
[1736147331522,3.47749739,3663.5,3662.9,0.11313913]
[1736147332970,1.13122577,3663.4,3662.9,0.11313913]
[1736147333169,1.13122577,3663.4,3663.0,35.0]
[1736147333685,1.13122577,3663.4,3663.1,0.11303888]
[1736147334568,1.13122577,3663.5,3663.1,0.11303888]
[1736147335189,1.13122577,3663.5,3663.3,3.48934]
[1736147335538,1.13122577,3663.5,3663.4,0.11288853]
[1736147335771,1.13122577,3663.5,3663.4,35.11288853]
[1736147336288,1.13122577,3663.5,3663.4,0.11288853]
[1736147337139,4.04311028,3663.7,3663.4,0.11288853]
[1736147337140,0.7919,3663.6,3663.4,0.11288853]
[1736147337484,0.7919,3663.6,3662.9,0.8102]
[1736147337785,0.7919,3663.6,3663.0,0.11302547]
[1736147338588,3.47749739,3663.5,3663.0,0.11302547]
[1736147339871,1.13122577,3663.3,3663.0,0.11302547]
[1736147340068,1.13122577,3663.3,3663.2,5.3403514]
[1736147340294,1.13122577,3663.3,3663.2,6.80837442]
[1736147340592,1.13122577,3663.3,3663.2,0.11292523]
[1736147341099,1.13122577,3663.3,3662.6,0.7655]
[1736147341398,2.72964,3663.5,3662.7,0.11310041]
[1736147342144,0.872,3663.6,3662.7,0.11310041]
[1736147342345,1.13122577,3662.9,3662.7,0.11310041]
[1736147342574,1.13122577,3662.9,3662.8,0.36088504]
[1736147342758,1.13122577,3662.9,3662.8,0.47393531]
[1736147343486,1.13122577,3662.9,3662.8,3.20408531]
[1736147343692,2.06877182,3663.0,3662.9,3.54577]
[1736147344073,2.06877182,3663.0,3662.9,38.65877015]
[1736147344599,0.13085918,3663.0,3662.9,41.81927155]
[1736147344887,1.13879648,3663.3,3663.2,3.51735]
[1736147345183,1.13879648,3663.3,3663.2,9.5082771]
[1736147346389,3.10969175,3664.1,3663.9,0.7875]
[1736147346753,3.10969175,3664.1,3664.0,0.11244892]
[1736147347149,3.10969175,3664.1,3664.0,35.11244892]
[1736147347891,3.10969175,3664.1,3664.0,37.84169892]
[1736147348065,1.69683866,3664.5,3664.0,40.55927484]
[1736147348267,1.69683866,3664.5,3664.0,37.83002484]
[1736147348588,1.69683866,3664.5,3664.3,2.72902]
[1736147349097,1.69683866,3664.5,3664.4,0.11224855]
[1736147349282,1.69683866,3664.5,3664.4,0.47754541]
[1736147349458,3.10969175,3664.9,3664.4,0.47754541]
[1736147350725,1.69683866,3665.1,3664.4,0.47754541]
[1736147351032,0.8124,3664.9,3664.4,0.11224855]
[1736147351325,2.72874,3664.7,3663.8,0.795]
[1736147351491,2.7289,3664.5,3663.4,0.8015]
[1736147351697,2.7289,3664.5,3663.9,0.11203058]
[1736147351889,0.7549,3664.6,3663.4,0.8015]
[1736147351890,2.72898,3664.4,3663.4,0.8015]
[1736147352092,2.72898,3664.4,3664.0,0.11198049]
[1736147352423,2.72898,3664.4,3663.4,0.8015]
[1736147352592,2.72898,3664.4,3664.1,0.11193039]
[1736147352800,2.72898,3664.4,3663.4,0.8015]
[1736147352998,2.72898,3664.4,3664.2,0.1118803]
[1736147353201,3.10969175,3664.3,3663.4,0.8015]
[1736147353590,0.8124,3664.2,3663.1,0.8148]
[1736147353787,2.72925,3664.1,3663.1,0.8148]
[1736147354098,0.7675,3663.9,3662.9,0.8156]
[1736147354295,0.7675,3663.9,3662.9,3.54564]
[1736147354782,3.10969175,3664.3,3663.6,0.7994]
[1736147355386,3.10969175,3664.3,3663.7,37.72945]
[1736147355898,1.13652528,3664.3,3663.7,37.72945]
[1736147356099,1.13652528,3664.3,3663.7,40.44702592]
[1736147356746,1.13652528,3664.3,3663.7,35.0]
[1736147357083,1.13652528,3664.4,3663.6,0.7994]
[1736147357526,1.13652528,3664.4,3663.6,35.7994]
[1736147358243,2.54597953,3664.3,3663.6,35.7994]
[1736147359244,2.54597953,3664.2,3663.6,35.7994]
[1736147359543,2.54597953,3664.2,3663.6,37.26230782]
[1736147359750,2.54597953,3664.2,3663.6,35.7994]
[1736147360946,0.8064,3664.1,3663.6,0.7994]
[1736147361324,2.21585425,3664.1,3663.6,0.7994]
[1736147361523,2.21585425,3664.1,3663.7,0.11232129]
[1736147362545,2.21585425,3664.1,3663.4,35.8115]
[1736147362727,0.8064,3664.1,3663.5,0.1124215]
[1736147363849,3.49645,3663.6,3663.5,0.1124215]
[1736147364051,2.72964,3663.5,3662.6,0.7622]
[1736147364578,0.7669,3663.6,3662.7,0.10530208]
[1736147365206,2.54572945,3663.4,3662.7,0.10530208]
[1736147365410,2.54572945,3663.4,3662.8,2.71757592]
[1736147365725,2.54572945,3663.4,3662.8,2.82282787]
[1736147366551,1.13652528,3663.4,3662.8,2.82282787]
[1736147367656,1.13652528,3663.4,3662.8,0.10525195]